bitfinex/quotes_BTCUSD_20250718
["timestamp","ask_amount","ask_price","bid_price","bid_amount"]
[1752856574311,0.22910331,117670.0,117660.0,0.22231028]
[1752856574444,0.17848022,117660.0,117650.0,0.34]
[1752856574635,0.18152022,117660.0,117650.0,0.56223028]
[1752856575172,0.18152022,117660.0,117650.0,0.56219028]
[1752856576110,0.19802022,117660.0,117650.0,0.56219028]
[1752856576350,0.19902022,117660.0,117650.0,0.56219028]
[1752856576554,0.19902022,117660.0,117650.0,0.42551028]
[1752856576801,0.20302022,117660.0,117650.0,0.56223028]
[1752856577182,0.21151906,117660.0,117650.0,0.73222603]
[1752856577486,0.19501906,117660.0,117650.0,0.75812905]
[1752856577657,0.02503747,117660.0,117650.0,0.76662854]
[1752856577828,0.04203538,117660.0,117650.0,0.77512782]
[1752856578095,0.20897596,117660.0,117650.0,0.43441395]
[1752856578443,0.20897596,117660.0,117650.0,0.57093395]
[1752856578444,0.19501892,117660.0,117650.0,0.57093395]
[1752856578643,0.19501892,117660.0,117650.0,0.56203028]
[1752856579197,0.19501892,117660.0,117650.0,0.74052581]
[1752856579411,0.19501892,117660.0,117650.0,0.56203028]
[1752856579626,0.19501892,117660.0,117650.0,0.74052574]
[1752856579825,0.19501892,117660.0,117650.0,0.74902531]
[1752856580020,0.0335361,117660.0,117650.0,0.8517837]
[1752856580493,0.03353595,117660.0,117650.0,0.8517837]
[1752856580745,0.22051515,117660.0,117650.0,0.8517837]
[1752856580943,0.04203479,117660.0,117650.0,0.8517837]
[1752856581101,0.05053371,117660.0,117650.0,0.8517837]
[1752856581279,0.05053371,117660.0,117650.0,0.76602408]
[1752856581484,0.21201653,117660.0,117650.0,0.76602422]
[1752856581708,0.21201653,117660.0,117650.0,0.7745235]
[1752856581967,0.21201653,117660.0,117650.0,0.7575248]
[1752856582133,0.01349855,117660.0,117650.0,0.85178377]
[1752856582289,0.01349841,117660.0,117650.0,0.86028305]
[1752856582477,0.01349841,117660.0,117650.0,0.77452343]
[1752856582679,0.03049559,117660.0,117650.0,0.77654343]
[1752856582878,0.02398689,117660.0,117650.0,0.77654343]
[1752856583245,0.04098429,117660.0,117650.0,0.77654343]
[1752856583443,0.03049552,117660.0,117650.0,0.77654343]
[1752856583648,0.005,117660.0,117650.0,1.35537939]
[1752856583846,0.005,117660.0,117650.0,1.37167939]
[1752856585227,0.004,117660.0,117650.0,1.3689074]
[1752856585404,0.20394158,117680.0,117670.0,0.19546121]
[1752856585632,0.20593158,117680.0,117670.0,0.41951149]
[1752856585835,0.20593158,117680.0,117670.0,0.42800932]
[1752856585836,0.01898415,117680.0,117670.0,0.42800932]
[1752856586021,0.02748148,117680.0,117670.0,0.45139591]
[1752856586228,0.01898415,117680.0,117670.0,0.45989374]
[1752856586422,0.18894514,117690.0,117680.0,0.19544461]
[1752856586423,0.19003871,117690.0,117680.0,0.19544461]
[1752856586686,0.20392439,117690.0,117680.0,0.29197205]
[1752856586890,0.20591439,117690.0,117680.0,0.28347494]
[1752856587034,0.21441128,117690.0,117680.0,0.29442189]
[1752856587239,0.03597642,117690.0,117680.0,0.302919]
[1752856587998,0.02747953,117690.0,117680.0,0.302919]
[1752856588236,0.01048632,117690.0,117680.0,0.302919]
[1752856588450,0.01699011,117710.0,117700.0,0.53541118]
[1752856588697,0.1862614,117730.0,117720.0,0.1868839]
[1752856588698,0.2223087,117730.0,117720.0,0.1868839]
[1752856588905,0.03397762,117720.0,117710.0,0.61240977]
[1752856589008,0.02548339,117720.0,117710.0,0.74893006]
[1752856589385,0.01698838,117720.0,117710.0,0.76592016]
[1752856589582,0.02002751,117730.0,117720.0,0.19537798]
[1752856589883,0.18990774,117730.0,117720.0,0.20400907]
[1752856590083,0.02011248,117730.0,117720.0,0.30650816]
[1752856590293,0.18999271,117730.0,117720.0,0.31500238]
[1752856590475,0.19848672,117730.0,117720.0,0.28951935]
[1752856590687,0.19848672,117730.0,117720.0,0.29801393]
[1752856590944,0.19848672,117730.0,117720.0,0.30650844]
[1752856591250,0.19848672,117730.0,117720.0,0.31487201]
[1752856591550,0.20048672,117730.0,117720.0,0.31487201]
[1752856591690,0.20048672,117730.0,117720.0,0.32336645]
[1752856591885,0.20548672,117730.0,117720.0,0.3073775]
[1752856592100,0.19699307,117730.0,117720.0,0.1204936]
[1752856592303,0.23529549,117730.0,117720.0,0.03498332]
[1752856592504,0.22799307,117730.0,117720.0,0.02661975]
[1752856592727,0.22799307,117730.0,117720.0,0.16309975]
[1752856593139,0.22799307,117730.0,117720.0,0.17174089]
[1752856593853,0.22799307,117730.0,117720.0,0.03526089]
[1752856594057,0.22799307,117730.0,117720.0,0.16309975]
[1752856595172,0.23013307,117730.0,117720.0,0.16309975]
[1752856596392,0.23013307,117730.0,117720.0,0.02661975]
[1752856596916,0.89541668,117730.0,117720.0,0.001]
[1752856597127,0.97878696,117730.0,117720.0,0.001]
[1752856597335,0.18693125,117690.0,117680.0,0.01094695]
[1752856597538,0.18693125,117690.0,117670.0,0.24557625]
[1752856597539,0.17844995,117680.0,117660.0,0.17846692]
[1752856597720,0.1954774,117660.0,117650.0,0.07711128]
[1752856597926,0.18697892,117660.0,117650.0,0.48619626]
[1752856598124,0.18148022,117660.0,117650.0,0.41908498]
[1752856598635,0.18148022,117660.0,117650.0,0.76808474]
[1752856598859,0.18148022,117660.0,117650.0,0.75108525]
[1752856599026,0.1729813,117660.0,117650.0,0.2410895]
[1752856599453,0.1769813,117660.0,117650.0,0.5810895]
[1752856599986,0.1769813,117660.0,117650.0,0.2410895]
[1752856600395,0.1769813,117660.0,117650.0,0.76808474]
[1752856600525,0.1769813,117660.0,117650.0,0.60624408]
[1752856600744,0.1769813,117660.0,117650.0,0.51213463]
[1752856600956,0.1729813,117660.0,117650.0,0.51213463]
[1752856601165,0.1729813,117660.0,117650.0,0.51313463]
[1752856601166,0.1739813,117660.0,117650.0,0.51313463]
[1752856601660,0.1739813,117660.0,117650.0,0.37665463]
[1752856601914,0.3423613,117660.0,117650.0,0.01150005]
[1752856602197,0.88289749,117660.0,117650.0,0.01150005]
[1752856602420,0.40864115,117660.0,117650.0,0.01150005]
[1752856603081,0.96840777,117660.0,117650.0,0.01150005]
[1752856603526,0.1870425,117620.0,117610.0,0.06711128]
[1752856603733,0.1870425,117620.0,117610.0,0.66374533]
[1752856603960,0.17854091,117620.0,117610.0,0.65524266]
[1752856604364,0.18154091,117620.0,117610.0,0.59665518]
[1752856604564,0.18154091,117620.0,117610.0,0.46017518]
[1752856604796,0.18454091,117620.0,117610.0,0.46117518]
[1752856605342,0.18454091,117620.0,117610.0,0.00108505]
[1752856605543,0.18454091,117620.0,117610.0,8.505e-05]
[1752856605544,0.18154091,117620.0,117610.0,8.505e-05]
[1752856605751,0.35072091,117620.0,117610.0,8.505e-05]
[1752856606038,0.35472091,117620.0,117610.0,0.00108505]
[1752856606447,0.7070381,117620.0,117610.0,0.00108505]
[1752856606650,0.23278176,117620.0,117610.0,0.00108505]
[1752856606858,0.20184091,117620.0,117610.0,0.00108505]
[1752856607072,0.18654091,117620.0,117610.0,0.00108505]
[1752856607307,0.18254091,117620.0,117610.0,8.505e-05]
[1752856607505,0.18254091,117620.0,117610.0,0.13656505]
[1752856607506,0.18154091,117620.0,117610.0,0.13656505]
[1752856607660,0.20054438,117620.0,117610.0,0.19461424]
[1752856607868,0.18704279,117620.0,117610.0,0.16210074]
[1752856608255,0.19304279,117620.0,117610.0,0.43566971]
[1752856608469,0.02600369,117620.0,117610.0,0.45267426]
[1752856608837,0.03450513,117620.0,117610.0,0.79267426]
[1752856609048,0.02600289,117620.0,117610.0,0.78417209]
[1752856609227,0.01750137,117620.0,117610.0,0.8011765]
[1752856609381,0.01750137,117620.0,117610.0,1.27543284]
[1752856609382,0.009,117620.0,117610.0,1.27543284]
[1752856609586,0.006,117620.0,117610.0,1.38024246]
[1752856609794,0.006,117620.0,117610.0,1.29448284]
[1752856609976,0.008,117620.0,117610.0,1.29448284]
[1752856610752,0.008,117620.0,117610.0,1.31068284]
[1752856610892,0.002,117620.0,117610.0,1.30968284]
[1752856611094,0.002,117620.0,117610.0,1.39544246]
[1752856611301,0.002,117620.0,117610.0,1.30968284]
[1752856611530,0.008,117620.0,117610.0,1.31068284]
[1752856611931,0.00204,117620.0,117610.0,1.30968284]
[1752856612483,0.00304,117620.0,117610.0,1.31068284]
[1752856612698,0.00104,117620.0,117610.0,1.39644246]
[1752856613050,0.00104,117620.0,117610.0,0.7009465]
[1752856613322,0.0095413,117620.0,117610.0,0.8021765]
[1752856613523,0.20508546,117620.0,117610.0,0.64869209]
[1752856613739,0.19658416,117620.0,117610.0,0.63168718]
[1752856613952,0.18808264,117620.0,117610.0,0.45313102]
[1752856614132,0.18808264,117620.0,117610.0,0.77666957]
[1752856614329,0.02654498,117620.0,117610.0,0.78517181]
[1752856614479,0.0180431,117620.0,117610.0,0.79367398]
[1752856614924,0.01804303,117620.0,117610.0,0.79367398]
[1752856615081,0.02654484,117620.0,117610.0,0.79367398]
[1752856615271,0.01804303,117620.0,117610.0,0.79367398]
[1752856615723,0.02654476,117620.0,117610.0,0.79367398]
[1752856615964,0.00954144,117620.0,117610.0,0.79367398]
[1752856616314,0.00104,117620.0,117610.0,0.79367398]
[1752856616514,0.00104,117620.0,117610.0,1.35368994]
[1752856616842,0.00104,117620.0,117610.0,1.38843994]
[1752856617425,0.00104,117620.0,117610.0,1.36290425]
[1752856619747,0.01804282,117620.0,117610.0,1.12536463]
[1752856619958,0.03504622,117620.0,117610.0,0.63165843]
[1752856620162,0.21358727,117620.0,117610.0,0.75963626]
[1752856620362,0.01804282,117620.0,117610.0,0.76813843]
[1752856620598,0.00104,117620.0,117610.0,1.24239477]
[1752856621008,0.00104,117620.0,117610.0,1.26844533]
[1752856621122,0.00104,117620.0,117610.0,1.37213495]
[1752856621325,0.00104,117620.0,117610.0,1.38873495]
[1752856622563,0.00104,117620.0,117610.0,1.30297533]
[1752856623024,0.00104,117620.0,117610.0,1.16649533]
[1752856623222,0.00104,117620.0,117610.0,1.30297533]
[1752856624915,0.00104,117620.0,117610.0,1.32849333]
[1752856627008,0.01814,117670.0,117650.0,0.52699452]
[1752856627296,0.00849769,117670.0,117660.0,0.42596666]
[1752856627511,0.21539709,117670.0,117660.0,0.41746818]
[1752856627723,0.00849769,117670.0,117660.0,0.43446536]
[1752856627929,0.01699552,117670.0,117660.0,0.43446536]
[1752856628137,0.01699559,117670.0,117660.0,0.52022498]
[1752856628360,0.00849769,117670.0,117660.0,0.86031003]
[1752856628592,0.02299552,117670.0,117660.0,0.86131003]
[1752856628793,0.01449769,117670.0,117660.0,0.86131003]
[1752856628998,0.02299552,117670.0,117660.0,0.86131003]
[1752856629371,0.0314935,117670.0,117660.0,0.86131003]
[1752856629588,0.02499552,117670.0,117660.0,0.86131003]
[1752856630179,0.008,117670.0,117660.0,1.33556637]
[1752856630395,0.008,117670.0,117660.0,1.37069637]
[1752856631462,0.04248259,117690.0,117680.0,0.19544439]
[1752856631666,0.18693147,117690.0,117680.0,0.40040023]
[1752856631873,0.01993314,117690.0,117680.0,0.41739495]
[1752856632073,0.01143624,117690.0,117680.0,0.48442232]
[1752856632262,0.02548923,117690.0,117680.0,0.48442232]
[1752856632740,0.02548916,117690.0,117680.0,0.48442232]
[1752856633160,0.02748916,117690.0,117680.0,0.48442232]
[1752856633569,0.03598584,117690.0,117680.0,0.48442232]
[1752856633787,0.02748916,117690.0,117680.0,0.48442232]
[1752856633997,0.03598591,117690.0,117680.0,0.42589206]
[1752856634202,0.20737125,117690.0,117680.0,0.23053035]
[1752856634404,0.22337125,117690.0,117680.0,0.27254038]
[1752856634618,0.17845003,117680.0,117670.0,0.5184523]
[1752856634840,0.19739003,117680.0,117670.0,0.7489007]
[1752856635045,0.19739003,117680.0,117670.0,0.75750398]
[1752856635256,0.21339003,117680.0,117670.0,0.45110987]
[1752856635482,0.21339003,117680.0,117670.0,0.16203959]
[1752856636116,0.21439003,117680.0,117670.0,0.33200644]
[1752856636353,0.21439003,117680.0,117670.0,0.34900275]
[1752856636570,0.21339003,117680.0,117670.0,0.34900275]
[1752856636927,0.22188743,117680.0,117670.0,0.35750073]
[1752856637344,0.20588743,117680.0,117670.0,0.34900275]
[1752856637534,0.20588743,117680.0,117670.0,0.43476237]
[1752856637945,0.04443212,117680.0,117670.0,0.35750065]
[1752856638211,0.04443212,117680.0,117670.0,0.36599848]
[1752856638410,0.21838453,117680.0,117670.0,0.35000275]
[1752856638559,0.21838453,117680.0,117670.0,0.36699863]
[1752856638782,0.004,117680.0,117670.0,1.26676525]
[1752856639042,0.004,117680.0,117670.0,1.37165487]
[1752856639478,0.005,117680.0,117670.0,1.37165487]
[1752856639675,0.005,117680.0,117670.0,1.38795487]
[1752856641706,0.004,117680.0,117670.0,1.38795487]
[1752856641940,0.004,117680.0,117670.0,0.91369853]
[1752856642150,0.004,117680.0,117670.0,1.38795487]
[1752856642535,0.004,117680.0,117670.0,1.38895487]
[1752856642984,0.004,117680.0,117670.0,1.38795487]
[1752856643446,0.004,117680.0,117670.0,1.38995487]
[1752856643447,0.01249697,117680.0,117670.0,1.38995487]
[1752856643665,0.19388728,117680.0,117670.0,0.11410987]
[1752856643883,0.22548728,117680.0,117670.0,0.16499959]
[1752856644092,0.22548728,117680.0,117670.0,0.003]
[1752856644306,0.22148728,117680.0,117670.0,0.1384]
[1752856644553,0.22148728,117680.0,117670.0,0.1404]
[1752856644977,0.22148728,117680.0,117670.0,0.1384]
[1752856645315,0.22548728,117680.0,117670.0,0.1394]
[1752856647107,0.22548728,117680.0,117670.0,0.1374]
[1752856647326,0.22648728,117680.0,117670.0,0.1374]
[1752856648549,0.21098728,117680.0,117670.0,0.1374]
[1752856649425,0.22698728,117680.0,117670.0,0.001]
[1752856649753,0.21098728,117680.0,117670.0,0.001]
[1752856649957,0.21188187,117680.0,117670.0,0.08651028]
[1752856650195,0.19194714,117680.0,117670.0,0.25647713]
[1752856650544,0.19194714,117680.0,117670.0,1.09622769]
[1752856650545,0.005,117680.0,117670.0,1.09622769]
[1752856650756,0.005,117680.0,117670.0,1.19371514]
[1752856651190,0.005,117680.0,117670.0,1.22611514]
[1752856651607,0.005,117680.0,117670.0,0.7518588]
[1752856651839,0.005,117680.0,117670.0,1.22611514]
[1752856652047,0.02199415,117680.0,117670.0,0.8526288]
[1752856652257,0.03049148,117680.0,117670.0,0.8526288]
[1752856652474,0.03049148,117680.0,117670.0,0.76686918]
[1752856652817,0.005,117680.0,117670.0,0.76686918]
[1752856653644,0.005,117680.0,117670.0,0.77009918]
[1752856653877,0.01349697,117680.0,117670.0,0.77009918]
[1752856654276,0.01349697,117680.0,117670.0,0.8558588]
[1752856654482,0.005,117680.0,117670.0,0.8558588]
[1752856654921,0.005,117680.0,117670.0,0.8526288]
[1752856655134,0.03049183,117680.0,117670.0,0.8441309]
[1752856655368,0.03049176,117680.0,117670.0,0.8441309]
[1752856655581,0.03049169,117680.0,117670.0,0.8441309]
[1752856655810,0.21743912,117680.0,117670.0,0.83563307]
[1752856656043,0.19494743,117680.0,117670.0,0.4237015]
[1752856656300,0.17846504,117670.0,117660.0,0.00864297]
[1752856656540,0.21256504,117670.0,117660.0,0.00864297]
[1752856656793,0.19736504,117670.0,117660.0,0.00864297]
[1752856657724,0.21356504,117670.0,117660.0,0.00864297]
[1752856657990,0.25231679,117670.0,117660.0,0.00864297]
[1752856658652,0.21356504,117670.0,117660.0,0.00864297]
[1752856659081,0.19836504,117670.0,117660.0,0.00864297]
[1752856661159,0.20236504,117670.0,117660.0,0.00964297]
[1752856662212,0.19196316,117670.0,117660.0,0.18812333]
[1752856662351,0.20046114,117670.0,117660.0,0.29063137]
[1752856662558,0.20046158,117670.0,117660.0,0.23407325]
[1752856662766,0.19196324,117670.0,117660.0,0.41255361]
[1752856662960,0.19196287,117670.0,117660.0,0.43804986]
[1752856663166,0.20895861,117670.0,117660.0,0.42105253]
[1752856663366,0.20895919,117670.0,117660.0,0.23407325]
[1752856663574,0.18346512,117670.0,117660.0,0.23407325]
[1752856663776,0.22210687,117670.0,117660.0,0.23407325]
[1752856664011,0.25330687,117670.0,117660.0,0.14856297]
[1752856664279,0.25330687,117670.0,117660.0,0.00964297]
[1752856667607,0.25530687,117670.0,117660.0,0.00964297]
[1752856668218,0.18546512,117670.0,117660.0,0.19013333]
[1752856668443,0.18546512,117670.0,117660.0,0.01165297]
[1752856668860,0.19396317,117670.0,117660.0,0.19013326]
[1752856669030,0.20246136,117670.0,117660.0,0.09716325]
[1752856669247,0.19396331,117670.0,117660.0,0.09716325]
[1752856669636,0.19696331,117670.0,117660.0,0.09515325]
[1752856669991,0.22716331,117670.0,117660.0,0.00964297]
[1752856671257,0.70141965,117670.0,117660.0,0.00964297]
[1752856671471,0.70141965,117670.0,117660.0,0.00108505]
[1752856672353,0.70141965,117670.0,117660.0,0.00967064]
[1752856672566,0.70141965,117670.0,117660.0,0.00108505]
[1752856673046,0.22716331,117670.0,117660.0,0.00108505]
[1752856673261,0.7558239,117670.0,117660.0,0.00108505]
[1752856673923,0.7558239,117670.0,117660.0,8.505e-05]
[1752856673924,0.7518239,117670.0,117660.0,8.505e-05]
[1752856674157,0.76636475,117670.0,117660.0,8.505e-05]
[1752856674377,0.76936475,117670.0,117660.0,0.00108505]
[1752856675022,0.76836475,117670.0,117660.0,0.00108505]
[1752856675244,0.76536475,117670.0,117660.0,8.505e-05]
[1752856675455,0.77036475,117670.0,117660.0,0.00108505]
[1752856675926,0.76936475,117670.0,117660.0,0.00108505]
[1752856676922,0.76536475,117670.0,117660.0,8.505e-05]
[1752856677186,0.24370416,117670.0,117660.0,0.00108505]
[1752856677450,0.36732331,117670.0,117660.0,0.00108505]
[1752856677936,0.33704331,117670.0,117660.0,0.00108505]
[1752856678155,0.34004331,117670.0,117660.0,0.00108505]
[1752856678895,0.33704331,117670.0,117660.0,0.00108505]
[1752856679136,0.89588922,117670.0,117660.0,0.00108505]
[1752856679638,0.89988922,117670.0,117660.0,0.00108505]
[1752856679877,0.44017373,117670.0,117660.0,0.00108505]
[1752856680117,0.91443007,117670.0,117660.0,0.00108505]
[1752856681201,0.8620405,117670.0,117660.0,0.00108505]
[1752856681472,0.35816331,117670.0,117660.0,0.00108505]
[1752856681732,0.34196331,117670.0,117660.0,0.00108505]
[1752856682023,0.20296331,117670.0,117660.0,0.00108505]
[1752856682281,0.011,117670.0,117660.0,1.27367404]
[1752856682540,0.011,117670.0,117660.0,0.88305256]
[1752856682791,0.011,117670.0,117660.0,1.3573089]
[1752856683001,0.007,117670.0,117660.0,1.3573089]
[1752856683454,0.04248281,117690.0,117680.0,0.55194439]
[1752856683670,0.04248281,117690.0,117680.0,0.77653467]
[1752856683897,0.02025184,117700.0,117690.0,0.195428]
[1752856684107,0.20394707,117700.0,117690.0,0.195428]
[1752856684358,0.20394692,117700.0,117690.0,0.195428]
[1752856684600,0.02552685,117700.0,117690.0,0.21982439]
[1752856684836,0.02552685,117700.0,117690.0,0.30533467]
[1752856685056,0.00853552,117700.0,117690.0,0.32337467]
[1752856685268,0.02103111,117700.0,117690.0,0.32437467]
[1752856685474,0.03152685,117700.0,117690.0,0.32437467]
[1752856685694,0.00604,117700.0,117690.0,0.32437467]
[1752856685927,0.00404,117700.0,117690.0,1.13863101]
[1752856686147,0.00404,117700.0,117690.0,1.22439063]
[1752856686356,0.00504,117700.0,117690.0,1.22439063]
[1752856686979,0.00104,117700.0,117690.0,1.22339063]
[1752856687255,0.01253559,117700.0,117690.0,0.72160476]
[1752856687464,0.00304,117700.0,117690.0,0.66337495]
[1752856687670,4e-05,117700.0,117690.0,0.66337495]
[1752856687873,0.00104,117700.0,117690.0,0.66537495]
[1752856688016,0.00104,117700.0,117690.0,1.16114245]
[1752856688222,4e-05,117700.0,117690.0,1.15914245]
[1752856688421,4e-05,117700.0,117690.0,0.68588611]
[1752856688652,4e-05,117700.0,117690.0,0.66437495]
[1752856688653,0.02103141,117700.0,117690.0,0.66437495]
[1752856688824,0.02652729,117700.0,117690.0,0.66337495]
[1752856689018,0.03402332,117700.0,117690.0,0.66033509]
[1752856689228,0.03402332,117700.0,117690.0,0.62093864]
[1752856689534,0.19017573,117700.0,117690.0,0.42551028]
[1752856689767,0.19017573,117700.0,117690.0,0.61244182]
[1752856689983,4e-05,117700.0,117690.0,0.62093842]
[1752856690183,4e-05,117700.0,117690.0,0.66347481]
[1752856690559,0.00853559,117700.0,117690.0,0.66347481]
[1752856690775,0.18895493,117700.0,117690.0,0.63693842]
[1752856690940,0.20394706,117700.0,117690.0,0.62943488]
[1752856691150,0.20494706,117700.0,117690.0,0.62943488]
[1752856691390,0.20794706,117700.0,117690.0,0.42651028]
[1752856691621,0.18695566,117700.0,117690.0,0.603945]
[1752856691741,0.18695566,117700.0,117690.0,0.62093814]
[1752856691937,0.18895566,117700.0,117690.0,0.61344168]
[1752856692141,0.18895566,117700.0,117690.0,0.63043481]
[1752856692350,0.01053581,117700.0,117690.0,0.77785127]
[1752856692558,0.02752736,117700.0,117690.0,0.77785091]
[1752856693068,0.03602339,117700.0,117690.0,0.77785091]
[1752856693280,0.00204,117700.0,117690.0,0.77785091]
[1752856693420,0.00204,117700.0,117690.0,1.30475797]
[1752856693634,0.00204,117700.0,117690.0,1.32105797]
[1752856694363,0.00204,117700.0,117690.0,1.28744725]
[1752856694584,0.00204,117700.0,117690.0,0.81319091]
[1752856695246,0.00204,117700.0,117690.0,1.28744725]
[1752856697235,0.00204,117700.0,117690.0,1.76170359]
[1752856697483,0.20293571,117750.0,117740.0,0.18685216]
[1752856697696,0.20422062,117750.0,117740.0,0.37135712]
[1752856697903,0.0004,117750.0,117740.0,0.38834275]
[1752856698128,0.00889191,117750.0,117740.0,0.47385303]
[1752856698359,0.0004,117750.0,117740.0,0.81385303]
[1752856698615,0.0004,117750.0,117740.0,1.30410937]
[1752856698812,0.00090036,117750.0,117740.0,1.32364937]
[1752856698949,0.00190036,117750.0,117740.0,1.32464937]
[1752856699174,0.00490036,117750.0,117740.0,1.32464937]
[1752856699381,0.00490036,117750.0,117740.0,1.33300628]
[1752856699588,0.00490036,117750.0,117740.0,0.72010994]
[1752856699787,0.00490036,117750.0,117740.0,0.85862994]
[1752856700407,0.00939242,117750.0,117740.0,0.84112994]
[1752856700619,0.00090036,117750.0,117740.0,0.83908994]
[1752856700861,0.00290036,117750.0,117740.0,1.33847405]
[1752856701110,0.00090036,117750.0,117740.0,1.33847405]
[1752856701328,0.00939242,117750.0,117740.0,1.19995405]
[1752856701528,0.00090036,117750.0,117740.0,0.86517771]
[1752856702009,0.00090036,117750.0,117740.0,0.72669771]
[1752856702242,0.00090036,117750.0,117740.0,0.84929771]
[1752856702462,0.00939242,117750.0,117740.0,0.84929771]
[1752856702629,0.19622842,117750.0,117740.0,0.84080493]
[1752856702849,0.02637704,117750.0,117740.0,0.71069771]
[1752856703050,0.20472098,117750.0,117740.0,0.84092493]
[1752856703286,0.02637704,117750.0,117740.0,0.84941771]
[1752856703496,0.03486953,117750.0,117740.0,0.84941771]
[1752856703796,0.0263769,117750.0,117740.0,0.84941771]
[1752856704031,0.00090036,117750.0,117740.0,0.86825771]
[1752856704256,0.00090036,117750.0,117740.0,1.35851405]
[1752856704700,0.00090036,117750.0,117740.0,0.88425771]
[1752856704924,0.00090036,117750.0,117740.0,1.35851405]
[1752856706735,0.00090036,117750.0,117740.0,0.88425771]
[1752856706942,0.00090036,117750.0,117740.0,1.37066405]
[1752856707317,0.00090036,117750.0,117740.0,1.35466405]
[1752856707529,0.00090036,117750.0,117740.0,1.33582405]
[1752856707742,0.00090036,117750.0,117740.0,1.33783405]
[1752856707944,0.00090036,117750.0,117740.0,1.35403405]
[1752856708418,0.00090036,117750.0,117740.0,1.35707405]
[1752856709481,0.00090036,117750.0,117740.0,1.37227405]
[1752856711854,0.00090036,117750.0,117740.0,1.38972047]
[1752856712515,0.00090036,117750.0,117740.0,1.87851766]
[1752856712731,0.0004,117760.0,117750.0,1.51514089]
[1752856712985,0.00044,117770.0,117760.0,0.19531161]
[1752856713207,0.00044,117770.0,117760.0,0.92705823]
[1752856713436,0.00044,117770.0,117760.0,0.93025823]
[1752856713677,0.00044,117770.0,117760.0,0.89575823]
[1752856713925,0.00044,117770.0,117760.0,0.42150189]
[1752856714144,0.00144,117770.0,117760.0,0.50726151]
[1752856714584,0.01842116,117770.0,117760.0,0.50722151]
[1752856714803,0.02165116,117770.0,117760.0,0.50722151]
[1752856715022,0.02365116,117770.0,117760.0,0.50722151]
[1752856715250,0.04063283,117770.0,117760.0,0.50722151]
[1752856715494,0.23346518,117770.0,117760.0,0.7528507]
[1752856715699,0.06364265,117770.0,117760.0,0.76134225]
[1752856715910,0.0721337,117770.0,117760.0,0.76983366]
[1752856716132,0.05515131,117770.0,117760.0,0.86408462]
[1752856716322,0.03935124,117770.0,117760.0,0.86408462]
[1752856716543,0.02237,117770.0,117760.0,0.86408462]
[1752856716754,0.00667,117770.0,117760.0,0.86408462]
[1752856716966,0.00344,117770.0,117760.0,0.86408462]
[1752856717198,0.00344,117770.0,117760.0,1.33834096]
[1752856717416,0.00344,117770.0,117760.0,1.35684096]
[1752856717958,0.00344,117770.0,117760.0,1.35364096]
[1752856719216,0.00344,117770.0,117760.0,1.37304096]
[1752856720377,0.00044,117790.0,117780.0,0.53527845]
[1752856720588,0.00044,117790.0,117780.0,1.27756691]
[1752856721636,0.00244,117790.0,117780.0,1.27756691]
[1752856721838,0.00044,117790.0,117780.0,1.27756691]
[1752856722410,0.00044,117790.0,117780.0,1.27856691]
[1752856722611,0.00044,117790.0,117780.0,1.28054691]
[1752856723312,0.00044,117790.0,117780.0,1.30064691]
[1752856723733,0.00044,117790.0,117780.0,1.31694691]
[1752856725266,0.00044,117790.0,117780.0,1.33469659]
[1752856725958,0.00044,117790.0,117780.0,1.33832659]
[1752856726410,0.00044,117790.0,117780.0,1.35787301]
[1752856727039,0.00044,117790.0,117780.0,0.88361667]
[1752856727253,0.00044,117790.0,117780.0,1.35787301]
[1752856727462,0.00044,117800.0,117790.0,0.70729797]
[1752856727674,0.0005899,117800.0,117790.0,0.98672021]
[1752856727893,0.0005899,117800.0,117790.0,0.98992021]
[1752856728675,0.0005899,117800.0,117790.0,0.99192021]
[1752856728880,0.0015899,117800.0,117790.0,0.99592021]
[1752856729827,0.0015899,117800.0,117790.0,0.95952046]
[1752856730709,0.0015899,117800.0,117790.0,0.81688046]
[1752856730937,0.0035499,117800.0,117790.0,0.93974046]
[1752856731159,0.01203835,117800.0,117790.0,0.93974046]
[1752856731379,0.0067799,117800.0,117790.0,0.46350412]
[1752856732232,0.0035499,117800.0,117790.0,0.93974046]
[1752856732471,0.0015899,117800.0,117790.0,0.93974046]
[1752856732946,0.0035499,117800.0,117790.0,0.93974046]
[1752856733644,0.0035499,117800.0,117790.0,0.46548412]
[1752856733875,0.0035499,117800.0,117790.0,0.93974046]
[1752856734587,0.01526821,117800.0,117790.0,0.93768046]
[1752856734802,0.0067799,117800.0,117790.0,0.93768046]
[1752856735014,0.0067799,117800.0,117790.0,0.93966046]
[1752856735222,0.0035499,117800.0,117790.0,0.93966046]
[1752856736100,0.0067799,117800.0,117790.0,0.93966046]
[1752856736315,0.0067799,117800.0,117790.0,0.93768046]
[1752856737597,0.0067799,117800.0,117790.0,0.93966046]
[1752856737823,0.0035499,117800.0,117790.0,0.93966046]
[1752856738055,0.0015899,117800.0,117790.0,0.93966046]
[1752856738501,0.0035499,117800.0,117790.0,0.93966046]
[1752856740034,0.0015899,117800.0,117790.0,0.93966046]
[1752856741554,0.0036099,117800.0,117790.0,0.93966046]
[1752856742237,0.01506821,117800.0,117790.0,0.93966046]
[1752856742462,0.0065799,117800.0,117790.0,0.93966046]
[1752856742698,0.0036099,117800.0,117790.0,0.93966046]
[1752856743636,0.04556828,117800.0,117790.0,0.46342412]
[1752856743854,0.05405688,117800.0,117790.0,0.42605216]
[1752856744291,0.0370799,117800.0,117790.0,0.42605216]
[1752856744717,0.03895659,117800.0,117790.0,0.42605216]
[1752856744961,0.0219799,117800.0,117790.0,0.42605216]
[1752856745700,0.0190099,117800.0,117790.0,0.42814216]
[1752856745923,0.0015899,117800.0,117790.0,0.98815812]
[1752856746373,0.0015899,117800.0,117790.0,0.99137812]
[1752856746816,0.0015899,117800.0,117790.0,1.00727812]
[1752856747028,0.0015899,117800.0,117790.0,1.02337812]
[1752856748020,0.0015899,117800.0,117790.0,0.98815812]
[1752856750383,0.0015899,117800.0,117790.0,1.00707812]
[1752856750591,0.0015899,117800.0,117790.0,0.98815812]
[1752856750797,0.0015899,117800.0,117790.0,1.01350156]
[1752856754148,0.0065799,117800.0,117790.0,1.01141156]
[1752856755234,0.0015899,117800.0,117790.0,1.01350156]
[1752856756894,0.0036099,117800.0,117790.0,1.01350156]
[1752856757067,0.0036099,117800.0,117790.0,1.01141156]
[1752856757291,0.0065799,117800.0,117790.0,1.01141156]
[1752856757851,0.0065799,117800.0,117790.0,1.01350156]
[1752856758849,0.24081372,117800.0,117790.0,0.45031589]
[1752856759089,0.07103416,117800.0,117790.0,0.79880514]
[1752856759307,0.05405666,117800.0,117790.0,1.28323949]
[1752856759516,0.0370799,117800.0,117790.0,1.28323949]
[1752856759723,0.05405674,117800.0,117790.0,1.36899911]
[1752856759953,0.0015899,117800.0,117790.0,1.37108911]
[1752856760633,0.01506821,117800.0,117790.0,1.14503949]
[1752856760858,0.04646821,117800.0,117790.0,1.28323949]